[Event "55th Rubinstein Memorial-A 2019"]
[Site "Polanica-Zdroj"]
[Date "2019.08.25"]
[Round "9.11"]
[White "Jaskolka, Tomasz"]
[Black "Zych, Marek"]
[Result "1-0"]
[ECO "D85"]
[WhiteElo "2227"]
[BlackElo "2061"]
[Annotator "NA"]
[PlyCount "103"]
[EventDate "2019.08.17"]
[EventType "swiss"]
[EventCountry "POL"]
[SourceTitle "playchess.com"]
[Source "ChessBase"]
[SourceQuality "1"]
[TimeControl "40/5400+30:1800+30"]

1. d4 {[%emt 0:00:00]} Nf6 {[%emt 0:01:40]} 2. c4 {[%emt 0:00:57]} g6 {[%emt 0:00:19]} 3. Nc3 {[%emt 0:00:03]} d5 {[%emt 0:00:12]} 4. cxd5 {[%emt 0:06:52]} Nxd5 {[%emt 0:01:38]} 5. Na4 {[%emt 0:00:03]} Bg7 {[%emt 0:05:24]} 6. Nf3 {[%emt 0:00:05]} Bg4 {[%emt 0:01:17]} 7. e4 {[%emt 0:04:32]} Nb6 {[%emt 0:01:34]} 8. Be3 {[%emt 0:02:36]} Nxa4 {[%emt 0:01:43]} 9. Qxa4+ {[%emt 0:00:06]} Nd7 {[%emt 0:00:49]} 10. Ne5 {[%emt 0:10:02]} Bxe5 {[%emt 0:02:29]} 11. dxe5 {[%emt 0:02:37]} O-O {[%emt 0:00:29]} 12. h3 {[%emt 0:02:20]} Be6 {[%emt 0:00:48]} 13. f4 {[%emt 0:00:38]} Nb6 {[%emt 0:03:10]} 14. Qc2 {[%emt 0:01:11]} f5 {[%emt 0:02:46]} 15. Rd1 {[%emt 0:07:20]} Qc8 {[%emt 0:00:58]} 16. Bd3 {[%emt 0:10:53]} c6 {[%emt 0:06:25]} 17. g4 {[%emt 0:22:15]} fxe4 {[%emt 0:07:41]} 18. Bxe4 {[%emt 0:00:06]} Nd5 {[%emt 0:03:10]} 19. Bc1 {[%emt 0:03:42]} Nxf4 {[%emt 0:03:18]} 20. Bxf4 {[%emt 0:01:23]} Rxf4 {[%emt 0:00:36]} 21. Bxg6 {[%emt 0:00:11]} Qc7 {[%emt 0:02:56]} 22. Bxh7+ {[%emt 0:02:52]} Kh8 {[%emt 0:01:35]} 23. Rh2 {[%emt 0:00:28]} Raf8 {[%emt 0:04:48]} 24. Bd3 {[%emt 0:03:53]} Qxe5+ {[%emt 0:01:16]} 25. Re2 {[%emt 0:02:57]} Qa5+ {[%emt 0:08:52]} 26. Qc3+ {[%emt 0:00:13]} Qxc3+ {[%emt 0:00:34]} 27. bxc3 {[%emt 0:00:05]} Rf1+ {[%emt 0:04:58]} 28. Kd2 {[%emt 0:01:29]} Bxa2 {[%emt 0:02:41]} 29. Rxf1 {[%emt 0:01:49]} Rxf1 {[%emt 0:00:55]} 30. Rxe7 {[%emt 0:00:10]} Rf7 {[%emt 0:00:32]} 31. Re1 {[%emt 0:03:12]} Bd5 {[%emt 0:00:46]} 32. c4 {[%emt 0:05:43]} Bf3 {[%emt 0:03:16]} 33. Bf5 {[%emt 0:00:18]} b5 {[%emt 0:01:29]} 34. Re3 {[%emt 0:01:10]} Bg2 {[%emt 0:00:24]} 35. h4 {[%emt 0:02:58]} a5 {[%emt 0:06:34]} 36. h5 {[%emt 0:00:12]} Kg7 {[%emt 0:00:46]} 37. Re6 {[%emt 0:00:37]} Rf6 {[%emt 0:01:46]} 38. Rxf6 {[%emt 0:00:33]} Kxf6 {[%emt 0:00:08]} 39. h6 {[%emt 0:00:05]} Bf1 {[%emt 0:02:01]} 40. g5+ {[%emt 0:00:00]} Kf7 {[%emt 0:00:00]} 41. cxb5 {[%emt 0:14:50]} cxb5 {[%emt 0:02:27]} 42. Kc3 {[%emt 0:00:08]} a4 {[%emt 0:03:10]} 43. Kd4 {[%emt 0:07:09]} a3 {[%emt 0:00:46]} 44. Ke5 {[%emt 0:00:59]} a2 {[%emt 0:03:28]} 45. Be6+ {[%emt 0:00:03]} Kg6 {[%emt 0:00:03]} 46. Bxa2 {[%emt 0:00:48]} Bd3 {[%emt 0:00:15]} 47. Kf4 {[%emt 0:00:42]} Kh7 {[%emt 0:21:17]} 48. Bd5 {[%emt 0:00:18]} Kh8 {[%emt 0:00:20]} 49. Be4 {[%emt 0:00:18]} Bc4 {[%emt 0:00:49]} 50. g6 {[%emt 0:01:08]} Kg8 {[%emt 0:01:09]} 51. Kg5 {[%emt 0:00:43]} Bf7 52. g7 1-0

[Event "55th Rubinstein Memorial-A 2019"]
[Site "Polanica-Zdroj"]
[Date "2019.08.25"]
[Round "9.12"]
[White "Derylo, Kamil"]
[Black "Niedbala, Bartlomiej"]
[Result "1-0"]
[ECO "B13"]
[WhiteElo "2030"]
[BlackElo "2169"]
[Annotator "NA"]
[PlyCount "87"]
[EventDate "2019.08.17"]
[EventType "swiss"]
[EventCountry "POL"]
[SourceTitle "playchess.com"]
[Source "ChessBase"]
[SourceQuality "1"]
[TimeControl "40/5400+30:1800+30"]

1. e4 {[%emt 0:00:00]} c6 {[%emt 0:03:34]} 2. d4 {[%emt 0:00:09]} d5 {[%emt 0:00:06]} 3. exd5 {[%emt 0:00:22]} cxd5 {[%emt 0:00:05]} 4. Bd3 {[%emt 0:00:20]} Nc6 {[%emt 0:02:26]} 5. c3 {[%emt 0:00:10]} g6 {[%emt 0:01:27]} 6. Nf3 {[%emt 0:01:12]} Bf5 {[%emt 0:02:34]} 7. Bf4 {[%emt 0:01:10]} Nf6 {[%emt 0:01:19]} 8. h3 {[%emt 0:01:58]} Bg7 {[%emt 0:12:36]} 9. O-O {[%emt 0:00:56]} O-O {[%emt 0:00:33]} 10. Bxf5 {[%emt 0:07:24]} gxf5 {[%emt 0:00:57]} 11. Ne1 {[%emt 0:01:04]} e6 {[%emt 0:02:41]} 12. Nd3 {[%emt 0:00:16]} Ne7 {[%emt 0:03:49]} 13. Re1 {[%emt 0:02:27]} Ng6 {[%emt 0:02:22]} 14. Bh2 {[%emt 0:00:42]} Ne4 {[%emt 0:03:48]} 15. f3 {[%emt 0:00:30]} Nf6 {[%emt 0:04:05]} 16. Nd2 {[%emt 0:00:32]} Bh6 {[%emt 0:02:08]} 17. Ne5 {[%emt 0:09:25]} f4 {[%emt 0:02:18]} 18. Nb3 {[%emt 0:03:51]} Nh5 {[%emt 0:09:11]} 19. Nc5 {[%emt 0:05:49]} b6 {[%emt 0:02:20]} 20. Ncd3 {[%emt 0:00:44]} Qh4 {[%emt 0:11:28]} 21. Qd2 {[%emt 0:04:05]} Kg7 {[%emt 0:02:35]} 22. a4 {[%emt 0:03:56]} Ng3 {[%emt 0:09:11]} 23. a5 {[%emt 0:01:53]} Rfe8 {[%emt 0:02:38]} 24. Ra2 {[%emt 0:01:55]} f6 {[%emt 0:03:46]} 25. Nxg6 {[%emt 0:02:20]} hxg6 {[%emt 0:00:03]} 26. axb6 {[%emt 0:01:13]} axb6 {[%emt 0:00:01]} 27. Rxa8 {[%emt 0:02:41]} Rxa8 {[%emt 0:00:01]} 28. Rxe6 {[%emt 0:00:09]} Ne4 {[%emt 0:05:18]} 29. Qc1 {[%emt 0:04:06]} Ng5 {[%emt 0:02:33]} 30. Rxb6 {[%emt 0:02:14]} Re8 {[%emt 0:00:01]} 31. Nf2 {[%emt 0:02:50]} Re2 {[%emt 0:03:29]} 32. Qf1 {[%emt 0:01:18]} Re3 {[%emt 0:00:02]} 33. Qd1 {[%emt 0:02:22]} f5 {[%emt 0:03:27]} 34. Kf1 {[%emt 0:01:19]} Kh7 {[%emt 0:00:41]} 35. Bg1 {[%emt 0:02:45]} Bg7 {[%emt 0:00:38]} 36. Nd3 {[%emt 0:02:02]} Re6 {[%emt 0:02:57]} 37. Bf2 {[%emt 0:01:07]} Qh6 {[%emt 0:00:02]} 38. Rxe6 {[%emt 0:04:20]} Nxe6 {[%emt 0:00:01]} 39. Qb3 {[%emt 0:00:54]} Qg5 {[%emt 0:00:42]} 40. Qxd5 {[%emt 0:00:00]} Qe7 {[%emt 0:00:00]} 41. Ne5 {[%emt 0:03:19]} Bxe5 {[%emt 0:01:08]} 42. Qxe5 {[%emt 0:02:22]} Qd7 {[%emt 0:00:56]} 43. d5 {[%emt 0:00:58]} Qb5+ {[%emt 0:00:39]} 44. Kg1 {[%emt 0:01:37]} 1-0

[Event "55th Rubinstein Memorial-A 2019"]
[Site "Polanica-Zdroj"]
[Date "2019.08.25"]
[Round "9.13"]
[White "Wisniewski, Michal"]
[Black "Stachecki, Mikolaj"]
[Result "1-0"]
[ECO "A05"]
[WhiteElo "2130"]
[BlackElo "1765"]
[Annotator "NA"]
[PlyCount "79"]
[EventDate "2019.08.17"]
[EventType "swiss"]
[EventCountry "POL"]
[SourceTitle "playchess.com"]
[Source "ChessBase"]
[SourceQuality "1"]
[TimeControl "40/5400+30:1800+30"]

1. Nf3 {[%emt 0:00:00]} Nf6 {[%emt 0:00:00]} 2. c4 {[%emt 0:00:13]} g6 {[%emt 0:00:00]} 3. g3 {[%emt 0:00:03]} Bg7 {[%emt 0:00:00]} 4. Bg2 {[%emt 0:00:03]} O-O {[%emt 0:00:00]} 5. O-O {[%emt 0:00:03]} d6 {[%emt 0:00:00]} 6. Nc3 {[%emt 0:00:05]} Nbd7 {[%emt 0:00:19]} 7. Rb1 {[%emt 0:00:35]} a5 {[%emt 0:05:32]} 8. a3 {[%emt 0:00:08]} e5 {[%emt 0:00:50]} 9. d3 {[%emt 0:00:07]} c6 {[%emt 0:02:32]} 10. Bg5 {[%emt 0:03:10]} h6 {[%emt 0:01:42]} 11. Bxf6 {[%emt 0:00:05]} Nxf6 {[%emt 0:00:29]} 12. b4 {[%emt 0:00:51]} Qe7 {[%emt 0:13:28]} 13. Nd2 {[%emt 0:02:32]} Be6 {[%emt 0:09:38]} 14. b5 {[%emt 0:03:26]} Qc7 {[%emt 0:08:48]} 15. Qa4 {[%emt 0:05:27]} Rfc8 {[%emt 0:05:17]} 16. Rb3 {[%emt 0:10:54]} Nd7 {[%emt 0:01:47]} 17. Rbb1 {[%emt 0:01:45]} Nc5 {[%emt 0:04:32]} 18. Qc2 {[%emt 0:00:08]} Rab8 {[%emt 0:16:42]} 19. Rfc1 {[%emt 0:07:05]} Qd7 {[%emt 0:01:38]} 20. Na4 {[%emt 0:00:43]} cxb5 {[%emt 0:02:29]} 21. Nb6 {[%emt 0:00:09]} Qc7 {[%emt 0:01:43]} 22. Nxc8 {[%emt 0:01:29]} Rxc8 {[%emt 0:00:03]} 23. Rxb5 {[%emt 0:04:29]} Bd7 {[%emt 0:00:44]} 24. Rb2 {[%emt 0:05:38]} e4 {[%emt 0:01:38]} 25. Nxe4 {[%emt 0:00:08]} Bxb2 {[%emt 0:00:58]} 26. Qxb2 {[%emt 0:00:01]} Nxe4 {[%emt 0:00:13]} 27. Bxe4 {[%emt 0:00:07]} b5 {[%emt 0:03:10]} 28. Bd5 {[%emt 0:04:23]} Qd8 {[%emt 0:02:58]} 29. cxb5 {[%emt 0:01:17]} Rxc1+ {[%emt 0:00:33]} 30. Qxc1 {[%emt 0:00:01]} Bxb5 {[%emt 0:00:12]} 31. Qxh6 {[%emt 0:00:04]} Qf6 {[%emt 0:00:21]} 32. Qf4 {[%emt 0:00:18]} Qe7 {[%emt 0:01:03]} 33. Qe4 {[%emt 0:00:43]} Qf6 {[%emt 0:00:18]} 34. Kg2 {[%emt 0:00:05]} Bd7 {[%emt 0:01:17]} 35. Qf4 {[%emt 0:02:15]} Qe7 {[%emt 0:03:35]} 36. e3 {[%emt 0:00:17]} Bf5 {[%emt 0:01:34]} 37. e4 {[%emt 0:00:19]} Bc8 {[%emt 0:00:13]} 38. h4 {[%emt 0:00:07]} Qd7 {[%emt 0:01:13]} 39. Qf6 {[%emt 0:00:18]} Kf8 {[%emt 0:01:41]} 40. h5 {[%emt 0:00:00]} 1-0

[Event "55th Rubinstein Memorial-A 2019"]
[Site "Polanica-Zdroj"]
[Date "2019.08.25"]
[Round "9.14"]
[White "Slomczewski, Michal"]
[Black "Skurniak, Szymon"]
[Result "1/2-1/2"]
[ECO "A20"]
[WhiteElo "2115"]
[BlackElo "1962"]
[Annotator "NA"]
[PlyCount "91"]
[EventDate "2019.08.17"]
[EventType "swiss"]
[EventCountry "POL"]
[SourceTitle "playchess.com"]
[Source "ChessBase"]
[SourceQuality "1"]
[TimeControl "40/5400+30:1800+30"]

1. c4 {[%emt 0:02:57]} e5 {[%emt 0:00:00]} 2. a3 {[%emt 0:00:19]} c6 {[%emt 0:01:12]} 3. e3 {[%emt 0:02:45]} d5 {[%emt 0:04:29]} 4. b4 {[%emt 0:00:44]} Be6 {[%emt 0:02:43]} 5. Bb2 {[%emt 0:01:36]} Bd6 {[%emt 0:09:46]} 6. Qc2 {[%emt 0:00:53]} f5 {[%emt 0:04:02]} 7. f4 {[%emt 0:08:30]} exf4 {[%emt 0:10:26]} 8. exf4 {[%emt 0:00:53]} Bxf4 {[%emt 0:01:02]} 9. Nh3 {[%emt 0:09:57]} Bh6 {[%emt 0:06:27]} 10. Bd3 {[%emt 0:00:22]} Qh4+ {[%emt 0:00:05]} 11. Nf2 {[%emt 0:00:05]} Ne7 {[%emt 0:06:28]} 12. c5 {[%emt 0:03:33]} O-O {[%emt 0:11:54]} 13. Nc3 {[%emt 0:01:33]} a5 {[%emt 0:04:21]} 14. O-O {[%emt 0:06:04]} axb4 {[%emt 0:09:10]} 15. axb4 {[%emt 0:00:10]} Bf4 {[%emt 0:00:02]} 16. Nh3 {[%emt 0:06:17]} Rxa1 {[%emt 0:00:52]} 17. Rxa1 {[%emt 0:01:14]} Bc7 {[%emt 0:00:05]} 18. Ne2 {[%emt 0:11:09]} f4 {[%emt 0:05:22]} 19. Qc3 {[%emt 0:17:00]} Rf7 {[%emt 0:03:50]} 20. Nhxf4 {[%emt 0:00:16]} Bxf4 {[%emt 0:01:08]} 21. g3 {[%emt 0:00:06]} Qg5 {[%emt 0:00:54]} 22. Nxf4 {[%emt 0:00:26]} Rxf4 {[%emt 0:00:35]} 23. Qe5 {[%emt 0:03:40]} Qxe5 {[%emt 0:00:21]} 24. Bxe5 {[%emt 0:00:02]} Rf8 {[%emt 0:00:54]} 25. Bd6 {[%emt 0:00:41]} Rf3 {[%emt 0:04:39]} 26. Be2 {[%emt 0:03:07]} Rb3 {[%emt 0:00:01]} 27. Bxe7 {[%emt 0:00:30]} Rxb4 {[%emt 0:01:01]} 28. Ra8 {[%emt 0:09:45]} Kf7 {[%emt 0:00:04]} 29. Rxb8 {[%emt 0:00:05]} Kxe7 {[%emt 0:00:04]} 30. Ba6 {[%emt 0:00:06]} Bf5 {[%emt 0:02:36]} 31. Rxb7+ {[%emt 0:02:57]} Rxb7 {[%emt 0:00:10]} 32. Bxb7 {[%emt 0:00:02]} Kd7 {[%emt 0:00:05]} 33. Ba6 {[%emt 0:01:05]} g5 {[%emt 0:00:04]} 34. d4 {[%emt 0:00:17]} Ke6 {[%emt 0:00:14]} 35. Kf2 {[%emt 0:01:00]} Kf6 {[%emt 0:02:31]} 36. Ke3 {[%emt 0:01:14]} Bd7 {[%emt 0:00:48]} 37. Kf3 {[%emt 0:02:53]} h5 {[%emt 0:00:32]} 38. h4 {[%emt 0:01:04]} Kf5 {[%emt 0:00:39]} 39. Bd3+ {[%emt 0:00:50]} Kf6 {[%emt 0:00:05]} 40. Ke3 {[%emt 0:00:00]} Bc8 {[%emt 0:00:00]} 41. Be2 {[%emt 0:02:30]} Kg6 {[%emt 0:03:29]} 42. Kd2 {[%emt 0:02:46]} Bg4 {[%emt 0:06:22]} 43. Ba6 {[%emt 0:07:33]} Bd7 {[%emt 0:00:58]} 44. Bd3+ {[%emt 0:04:57]} Bf5 {[%emt 0:00:44]} 45. Be2 {[%emt 0:00:19]} Bg4 {[%emt 0:01:09]} 46. Ba6 {[%emt 0:04:04]} 1/2-1/2

[Event "55th Rubinstein Memorial-A 2019"]
[Site "Polanica-Zdroj"]
[Date "2019.08.25"]
[Round "9.15"]
[White "Butyrowski, Marcel"]
[Black "Praczukowski, Stanislaw"]
[Result "1/2-1/2"]
[ECO "E62"]
[WhiteElo "1913"]
[BlackElo "2126"]
[Annotator "NA"]
[PlyCount "68"]
[EventDate "2019.08.17"]
[EventType "swiss"]
[EventCountry "POL"]
[SourceTitle "playchess.com"]
[Source "ChessBase"]
[SourceQuality "1"]
[TimeControl "40/5400+30:1800+30"]

1. d4 {[%emt 0:00:00]} Nf6 {[%emt 0:00:00]} 2. c4 {[%emt 0:00:11]} g6 {[%emt 0:00:00]} 3. g3 {[%emt 0:00:31]} Bg7 {[%emt 0:00:00]} 4. Bg2 {[%emt 0:00:15]} O-O {[%emt 0:00:00]} 5. Nc3 {[%emt 0:00:42]} d6 {[%emt 0:00:17]} 6. Nf3 {[%emt 0:00:17]} Nc6 {[%emt 0:00:12]} 7. O-O {[%emt 0:01:02]} Bg4 {[%emt 0:00:06]} 8. b3 {[%emt 0:05:08]} Nd7 {[%emt 0:02:19]} 9. Be3 {[%emt 0:07:24]} e5 {[%emt 0:08:30]} 10. d5 {[%emt 0:01:57]} Ne7 {[%emt 0:02:33]} 11. Rc1 {[%emt 0:04:32]} f5 {[%emt 0:08:13]} 12. Ng5 {[%emt 0:04:35]} f4 {[%emt 0:00:55]} 13. Bd2 {[%emt 0:00:38]} h6 {[%emt 0:07:09]} 14. Nge4 {[%emt 0:04:50]} Bh5 {[%emt 0:09:02]} 15. b4 {[%emt 0:05:22]} a5 {[%emt 0:01:17]} 16. a3 {[%emt 0:02:19]} axb4 {[%emt 0:02:22]} 17. axb4 {[%emt 0:00:43]} Nf6 {[%emt 0:03:29]} 18. Nxf6+ {[%emt 0:03:39]} Bxf6 {[%emt 0:00:41]} 19. Ne4 {[%emt 0:01:06]} g5 {[%emt 0:02:58]} 20. f3 {[%emt 0:12:29]} Bg6 {[%emt 0:03:05]} 21. gxf4 {[%emt 0:02:44]} gxf4 {[%emt 0:01:15]} 22. Kh1 {[%emt 0:02:24]} Nf5 {[%emt 0:03:14]} 23. Bh3 {[%emt 0:01:18]} Kh7 {[%emt 0:01:41]} 24. Bxf5 {[%emt 0:03:10]} Bxf5 {[%emt 0:00:07]} 25. e3 {[%emt 0:00:15]} Bxe4 {[%emt 0:06:18]} 26. fxe4 {[%emt 0:00:07]} fxe3 {[%emt 0:01:10]} 27. Bxe3 {[%emt 0:00:20]} Bg5 {[%emt 0:01:39]} 28. Rxf8 {[%emt 0:04:37]} Qxf8 {[%emt 0:00:24]} 29. Bxg5 {[%emt 0:00:21]} hxg5 {[%emt 0:00:10]} 30. Qh5+ {[%emt 0:00:17]} Qh6 {[%emt 0:00:06]} 31. Qf7+ {[%emt 0:00:39]} Qg7 {[%emt 0:00:10]} 32. Qh5+ {[%emt 0:10:31]} Qh6 {[%emt 0:00:11]} 33. Qf7+ {[%emt 0:01:34]} Qg7 {[%emt 0:00:13]} 34. Qh5+ {[%emt 0:00:08]} Qh6 {[%emt 0:00:03]} 1/2-1/2

[Event "55th Rubinstein Memorial-A 2019"]
[Site "Polanica-Zdroj"]
[Date "2019.08.25"]
[Round "9.16"]
[White "Domanski, Lukasz"]
[Black "Majek, Kacper"]
[Result "1-0"]
[ECO "C24"]
[WhiteElo "2058"]
[BlackElo "1984"]
[Annotator "NA"]
[PlyCount "51"]
[EventDate "2019.08.17"]
[EventType "swiss"]
[EventCountry "POL"]
[SourceTitle "playchess.com"]
[Source "ChessBase"]
[SourceQuality "1"]
[TimeControl "40/5400+30:1800+30"]

1. e4 {[%emt 0:02:24]} e5 {[%emt 0:00:00]} 2. Bc4 {[%emt 0:00:11]} Nf6 {[%emt 0:00:00]} 3. d3 {[%emt 0:00:06]} Bc5 {[%emt 0:00:00]} 4. Nc3 {[%emt 0:00:31]} O-O {[%emt 0:00:08]} 5. f4 {[%emt 0:00:36]} d6 {[%emt 0:00:57]} 6. f5 {[%emt 0:03:04]} c6 {[%emt 0:13:42]} 7. g4 {[%emt 0:02:16]} d5 {[%emt 0:13:58]} 8. g5 {[%emt 0:06:46]} dxc4 {[%emt 0:01:51]} 9. gxf6 {[%emt 0:00:51]} Qxf6 {[%emt 0:09:27]} 10. Qg4 {[%emt 0:04:30]} cxd3 {[%emt 0:02:56]} 11. Bg5 {[%emt 0:03:46]} d2+ {[%emt 0:00:07]} 12. Bxd2 {[%emt 0:00:28]} h6 {[%emt 0:01:53]} 13. O-O-O {[%emt 0:06:41]} b5 {[%emt 0:16:31]} 14. Nf3 {[%emt 0:02:40]} Kh7 {[%emt 0:01:52]} 15. Ne2 {[%emt 0:22:54]} g6 {[%emt 0:06:32]} 16. Qh3 {[%emt 0:04:11]} gxf5 {[%emt 0:04:07]} 17. Nxe5 {[%emt 0:05:11]} fxe4 {[%emt 0:03:19]} 18. Qh5 {[%emt 0:04:09]} e3 {[%emt 0:03:01]} 19. Bc3 {[%emt 0:00:37]} Qf5 {[%emt 0:03:33]} 20. Qh4 Qg5 21. Qe1 {[%emt 0:03:53]} b4 {[%emt 0:09:17]} 22. Rg1 {[%emt 0:01:45]} Qf5 {[%emt 0:02:45]} 23. Nd7 {[%emt 0:07:39]} f6 {[%emt 0:03:30]} 24. Qg3 {[%emt 0:01:24]} Qg5 {[%emt 0:00:42]} 25. Nxf8+ {[%emt 0:00:12]} Bxf8 {[%emt 0:00:02]} 26. Qc7+ {[%emt 0:00:10]} 1-0

[Event "55th Rubinstein Memorial-A 2019"]
[Site "Polanica-Zdroj"]
[Date "2019.08.25"]
[Round "9.17"]
[White "Galant, Ireneusz"]
[Black "Rosicki, Marcin"]
[Result "0-1"]
[ECO "A45"]
[WhiteElo "1774"]
[BlackElo "2042"]
[Annotator "NA"]
[PlyCount "100"]
[EventDate "2019.08.17"]
[EventType "swiss"]
[EventCountry "POL"]
[SourceTitle "playchess.com"]
[Source "ChessBase"]
[SourceQuality "1"]
[TimeControl "40/5400+30:1800+30"]

1. d4 {[%emt 0:00:41]} Nf6 {[%emt 0:00:00]} 2. Bf4 {[%emt 0:00:23]} d5 {[%emt 0:00:15]} 3. e3 {[%emt 0:00:31]} Bf5 {[%emt 0:00:24]} 4. Nf3 {[%emt 0:01:29]} e6 {[%emt 0:00:15]} 5. Be2 {[%emt 0:00:39]} Bd6 {[%emt 0:04:56]} 6. Ne5 {[%emt 0:05:33]} Nfd7 {[%emt 0:10:54]} 7. g4 {[%emt 0:07:34]} Bg6 {[%emt 0:00:04]} 8. h4 {[%emt 0:02:41]} Nxe5 {[%emt 0:02:42]} 9. dxe5 {[%emt 0:02:18]} Bb4+ {[%emt 0:00:03]} 10. c3 {[%emt 0:01:57]} Be7 {[%emt 0:00:21]} 11. h5 {[%emt 0:03:06]} Be4 {[%emt 0:01:24]} 12. Rh2 {[%emt 0:02:57]} Bxb1 {[%emt 0:04:07]} 13. Qxb1 {[%emt 0:00:53]} Nc6 {[%emt 0:08:37]} 14. Qc2 {[%emt 0:11:02]} Bc5 {[%emt 0:08:09]} 15. Bd3 {[%emt 0:17:30]} h6 {[%emt 0:00:37]} 16. Qb3 {[%emt 0:05:57]} Qd7 {[%emt 0:13:00]} 17. O-O-O {[%emt 0:03:52]} O-O-O {[%emt 0:01:53]} 18. Rg1 {[%emt 0:08:29]} f6 {[%emt 0:03:11]} 19. exf6 {[%emt 0:00:22]} gxf6 {[%emt 0:00:03]} 20. Qb5 {[%emt 0:00:56]} Bd6 {[%emt 0:07:16]} 21. Qb3 {[%emt 0:06:30]} Bxf4 {[%emt 0:01:22]} 22. exf4 {[%emt 0:00:07]} Qd6 {[%emt 0:00:04]} 23. Rhg2 {[%emt 0:02:55]} Qxf4+ {[%emt 0:00:07]} 24. Kb1 {[%emt 0:00:10]} Ne5 {[%emt 0:07:32]} 25. Be2 {[%emt 0:01:35]} Rhe8 {[%emt 0:00:27]} 26. Bb5 {[%emt 0:02:11]} c6 {[%emt 0:00:32]} 27. Qa4 {[%emt 0:00:18]} d4 {[%emt 0:06:11]} 28. Bc4 {[%emt 0:02:41]} Nxc4 {[%emt 0:12:29]} 29. Qxc4 {[%emt 0:00:07]} Qe5 {[%emt 0:00:25]} 30. cxd4 {[%emt 0:01:03]} Rxd4 {[%emt 0:00:05]} 31. Qc2 {[%emt 0:03:32]} Red8 {[%emt 0:00:19]} 32. f3 {[%emt 0:00:15]} Qe3 {[%emt 0:00:23]} 33. Rc1 {[%emt 0:00:53]} Qxf3 {[%emt 0:04:35]} 34. Rf2 {[%emt 0:00:08]} Qxg4 {[%emt 0:00:14]} 35. Qg6 {[%emt 0:01:55]} Qxg6+ {[%emt 0:01:16]} 36. hxg6 {[%emt 0:00:02]} f5 {[%emt 0:00:39]} 37. Re2 {[%emt 0:00:56]} Re4 {[%emt 0:00:59]} 38. Rh2 {[%emt 0:00:06]} Rg8 {[%emt 0:01:07]} 39. Rxh6 {[%emt 0:00:38]} Rg4 {[%emt 0:00:26]} 40. g7 {[%emt 0:00:00]} R4xg7 {[%emt 0:00:00]} 41. Rxe6 {[%emt 0:00:29]} Rg1 {[%emt 0:03:21]} 42. Rf6 {[%emt 0:00:31]} Rxc1+ {[%emt 0:01:17]} 43. Kxc1 {[%emt 0:00:01]} Rg1+ {[%emt 0:00:06]} 44. Kc2 {[%emt 0:00:18]} Rf1 {[%emt 0:00:06]} 45. b4 {[%emt 0:00:23]} f4 {[%emt 0:01:23]} 46. a4 {[%emt 0:00:08]} f3 {[%emt 0:00:38]} 47. Rf8+ {[%emt 0:00:45]} Kc7 {[%emt 0:00:47]} 48. a5 {[%emt 0:00:29]} f2 49. Rf7+ {[%emt 0:00:30]} Kd6 {[%emt 0:00:47]} 50. Kd2 {[%emt 0:00:42]} Ra1 {[%emt 0:00:32]} 0-1

[Event "55th Rubinstein Memorial-A 2019"]
[Site "Polanica-Zdroj"]
[Date "2019.08.25"]
[Round "9.18"]
[White "Jankowiak, Piotr"]
[Black "Kulesza, Andrzej"]
[Result "1/2-1/2"]
[ECO "A45"]
[WhiteElo "2033"]
[BlackElo "1940"]
[Annotator "NA"]
[PlyCount "60"]
[EventDate "2019.08.17"]
[EventType "swiss"]
[EventCountry "POL"]
[SourceTitle "playchess.com"]
[Source "ChessBase"]
[SourceQuality "1"]
[TimeControl "40/5400+30:1800+30"]

1. d4 {[%emt 0:00:00]} Nf6 {[%emt 0:00:15]} 2. Bf4 {[%emt 0:00:00]} g6 {[%emt 0:03:22]} 3. Nc3 {[%emt 0:00:00]} d5 {[%emt 0:00:56]} 4. e3 {[%emt 0:00:00]} Bg7 {[%emt 0:01:02]} 5. h4 {[%emt 0:00:12]} h5 {[%emt 0:01:35]} 6. Nf3 {[%emt 0:00:26]} Bg4 {[%emt 0:02:01]} 7. Be2 {[%emt 0:00:46]} c6 {[%emt 0:04:28]} 8. Ne5 {[%emt 0:01:46]} Bxe2 {[%emt 0:01:42]} 9. Qxe2 {[%emt 0:00:11]} Nbd7 {[%emt 0:00:59]} 10. e4 {[%emt 0:02:36]} dxe4 {[%emt 0:06:16]} 11. Nxe4 {[%emt 0:00:17]} Nxe4 {[%emt 0:00:53]} 12. Qxe4 {[%emt 0:00:53]} Nxe5 {[%emt 0:00:12]} 13. Bxe5 {[%emt 0:08:35]} Qa5+ {[%emt 0:00:55]} 14. c3 {[%emt 0:09:53]} Bxe5 {[%emt 0:00:24]} 15. Qxe5 {[%emt 0:02:50]} Qxe5+ {[%emt 0:00:14]} 16. dxe5 {[%emt 0:00:04]} Kd7 {[%emt 0:02:17]} 17. O-O-O+ {[%emt 0:14:27]} Ke6 {[%emt 0:01:23]} 18. Rd3 {[%emt 0:00:23]} Rad8 {[%emt 0:00:57]} 19. Rhd1 {[%emt 0:00:12]} Rd5 {[%emt 0:04:27]} 20. Rxd5 {[%emt 0:11:23]} cxd5 {[%emt 0:00:07]} 21. f4 {[%emt 0:02:27]} Rc8 {[%emt 0:05:18]} 22. Kd2 {[%emt 0:02:28]} Rc4 {[%emt 0:02:27]} 23. Ke3 {[%emt 0:01:04]} Re4+ {[%emt 0:01:15]} 24. Kf3 {[%emt 0:00:10]} Ra4 {[%emt 0:00:50]} 25. a3 {[%emt 0:00:51]} Rc4 {[%emt 0:00:42]} 26. Rd2 {[%emt 0:15:58]} b5 {[%emt 0:02:57]} 27. g3 {[%emt 0:09:00]} Ra4 {[%emt 0:02:05]} 28. Rd1 {[%emt 0:01:33]} Rc4 {[%emt 0:00:12]} 29. Rd2 {[%emt 0:00:16]} Ra4 {[%emt 0:00:05]} 30. Rd1 {[%emt 0:00:17]} Rc4 {[%emt 0:00:06] Ke4 Kxe5+} 1/2-1/2

[Event "55th Rubinstein Memorial-A 2019"]
[Site "Polanica-Zdroj"]
[Date "2019.08.25"]
[Round "9.19"]
[White "Grochol, Kamil"]
[Black "Betkowski, Andrzej"]
[Result "1/2-1/2"]
[ECO "C00"]
[WhiteElo "1837"]
[BlackElo "2023"]
[Annotator "NA"]
[PlyCount "61"]
[EventDate "2019.08.17"]
[EventType "swiss"]
[EventCountry "POL"]
[SourceTitle "playchess.com"]
[Source "ChessBase"]
[SourceQuality "1"]
[TimeControl "40/5400+30:1800+30"]

1. e4 {[%emt 0:00:00]} e6 {[%emt 0:00:00]} 2. d4 {[%emt 0:00:00]} d5 {[%emt 0:00:00]} 3. Bd3 {[%emt 0:00:00]} dxe4 {[%emt 0:10:54]} 4. Bxe4 {[%emt 0:00:28]} Nf6 {[%emt 0:00:12]} 5. Bf3 {[%emt 0:00:04]} c5 {[%emt 0:00:55]} 6. Ne2 {[%emt 0:00:08]} Nc6 {[%emt 0:03:01]} 7. Be3 {[%emt 0:01:03]} cxd4 {[%emt 0:03:03]} 8. Nxd4 {[%emt 0:00:21]} Nxd4 {[%emt 0:05:45]} 9. Qxd4 {[%emt 0:00:10]} Nd5 {[%emt 0:15:22]} 10. Bxd5 {[%emt 0:02:48]} Qxd5 {[%emt 0:01:19]} 11. Qxd5 {[%emt 0:00:34]} exd5 {[%emt 0:00:04]} 12. Nc3 {[%emt 0:09:57]} Bb4 {[%emt 0:03:09]} 13. Bd4 {[%emt 0:00:43]} O-O {[%emt 0:01:27]} 14. O-O-O {[%emt 0:01:09]} Bxc3 {[%emt 0:01:36]} 15. Bxc3 {[%emt 0:00:33]} Be6 {[%emt 0:00:38]} 16. Rhe1 {[%emt 0:06:35]} Rfe8 {[%emt 0:01:47]} 17. Re3 {[%emt 0:01:44]} f6 {[%emt 0:03:23]} 18. Rde1 {[%emt 0:04:54]} Bd7 {[%emt 0:04:37]} 19. Bd4 {[%emt 0:01:18]} a6 {[%emt 0:01:07]} 20. Re7 {[%emt 0:02:44]} Bc6 {[%emt 0:00:58]} 21. Kd2 {[%emt 0:03:01]} Rxe7 {[%emt 0:09:49]} 22. Rxe7 {[%emt 0:02:25]} Rc8 {[%emt 0:02:36]} 23. f3 {[%emt 0:14:37]} Kf8 {[%emt 0:01:28]} 24. Bc5 {[%emt 0:02:03]} Kg8 {[%emt 0:00:06]} 25. Bd4 {[%emt 0:02:35]} Kf8 {[%emt 0:00:08]} 26. Bc5 {[%emt 0:01:36]} Kg8 {[%emt 0:00:05]} 27. c3 {[%emt 0:00:42]} h5 {[%emt 0:07:53]} 28. g4 {[%emt 0:10:47]} Re8 {[%emt 0:06:47]} 29. Rxe8+ {[%emt 0:16:24]} Bxe8 {[%emt 0:00:03]} 30. Ke3 {[%emt 0:00:08]} hxg4 {[%emt 0:01:05]} 31. fxg4 {[%emt 0:00:01]} 1/2-1/2